Cogmind - Beta 15 @@@ ROGUE MODE // 2025.09.23 @ 17:47:55 Player: bluemonk Result: Destroyed by D-53 Grenadier with Mini Grenade Launcher Performance ------------- Evolutions (0) 0 Regions Visited (4) 800 Robots Destroyed (20) 100 Value Destroyed (611) 611 Prototype IDs (0) 0 Alien Tech Used (0) 0 Bonus (16) 16 TOTAL SCORE: 1527 Bonus ------- Follower Combat Kills 33 Friendly Fire -17 Cogmind --------- Core Integrity 0/250 Matter 300/300 Energy 229/265 System Corruption 2% Temperature Cool (97) Movement Walking (190) Ox1 Location -8/Recycling Parts ------- > --- POWER (1) -------- Improved Ion Engine > --- PROPULSION (2) --- Aluminum Leg Improved Aluminum Leg > --- UTILITY (2) ------ Small Storage Unit Makeshift Light Armor Plating > --- WEAPON (2) ------- Shock Rifle Ion Cannon > --- INVENTORY (8) ---- Subdweller Power Source Light Treads Armored Treads Improved Terrain Scanner Reactive Plating EM Pulse Cannon Peak State ------------ > --- POWER ------------ Subdweller Power Source > --- PROPULSION ------- Aluminum Leg Subdweller Monowheel > --- UTILITY ---------- Small Storage Unit Makeshift Light Armor Plating > --- WEAPON ----------- Ion Cannon Ion Cannon > --- INVENTORY -------- Subdweller Power Source Structural Scanner Weapon Shielding Beam Rifle Subdweller Laser Subdweller Machine Gun Grenade Launcher [Rating: 17] Favorites ----------- Power Improved Ion Engine Engine Improved Ion Engine Propulsion Aluminum Leg Leg Aluminum Leg Wheel Subdweller Monowheel Utility Small Storage Unit Device Structural Scanner Storage Small Storage Unit Protection Makeshift Light Armor Plating Weapon Ion Cannon Energy Gun Beam Rifle Energy Cannon Ion Cannon Ballistic Gun Assault Rifle Launcher Grenade Launcher Special Weapon Flamer Build | -11 -10 -10 -10 -8 ------- Run | Yrd Mat Min Sub Rec Slots Evolved . | . . . . . Power . | . . . . . Propulsion . | . . . . . Utility . | . . . . . Weapon . | . . . . . Parts Attached 22 | 6 1 2 7 6 Power 4 | 1 . 1 1 1 Engine 4 | 1 . 1 1 1 Core . | . . . . . Reactor . | . . . . . Propulsion 6 | 2 . . 2 2 Treads . | . . . . . Leg 5 | 2 . . 1 2 Wheel 1 | . . . 1 . Hover . | . . . . . Flight . | . . . . . Utility 3 | 1 1 . 1 . Device 1 | . 1 . . . Storage 1 | 1 . . . . Processor . | . . . . . Hackware . | . . . . . Protection 1 | . . . 1 . Artifact . | . . . . . Weapon 9 | 2 . 1 3 3 Energy Gun 2 | . . 1 . 1 Energy Cannon 2 | . . . . 2 Ballistic Gun 3 | 2 . . 1 . Ballistic Cannon . | . . . . . Launcher 1 | . . . 1 . Special Weapon 1 | . . . 1 . Impact Weapon . | . . . . . Slashing Weapon . | . . . . . Piercing Weapon . | . . . . . Special Melee Weapon . | . . . . . Unidentified Prototypes . | . . . . . Parts Lost 6 | . . . 4 2 Power 1 | . . . 1 . Propulsion 3 | . . . 2 1 Utility . | . . . . . Weapon 2 | . . . 1 1 Highest Loss Streak 2 | . . . 2 1 To Critical Strikes . | . . . . . Average Backups 6 | 2 7 8 7 5 Power 1 | . 1 1 1 1 Propulsion . | 1 2 1 1 . Utility 2 | . 1 4 2 2 Weapon 1 | . 1 2 1 1 Tool/Special . | . . . . . Unused Backups 17 | . 4 1 4 8 Power 3 | . . . 1 2 Propulsion 6 | . 4 . . 2 Utility 6 | . . . 3 3 Weapon 2 | . . 1 . 1 Tool/Special . | . . . . . Average Slot Usage (%) 99 | . 92 100 99 99 Engine 13 | . 14 14 13 14 Leg 25 | . 28 28 24 24 Wheel 2 | . . . 3 3 Device 4 | . 7 14 4 . Storage 14 | . 14 14 14 14 Protection 9 | . . . 9 14 Energy Gun 7 | . . 12 13 2 Energy Cannon 10 | . . . . 25 Ballistic Gun 8 | . 28 15 11 . Peak Build Rating 17 | 6 7 9 14 17 Average Rating 13 | 4 6 8 12 16 On Entrance 7 | . 6 7 9 14 Naked Turns . | . . . . . Heaviest Build 28 | 13 14 18 23 28 Greatest Support 23 | 20 20 20 20 23 Greatest Overweight (x) 8 | . . . 2 8 Average Overweight (x) . | . . . . 1 Largest Inventory Capacity 8 | 8 8 8 8 8 Average Capacity 7 | 7 8 8 8 8 Most Carried 8 | 6 8 8 8 7 Average Carried 6 | 2 7 7 7 5 Final Capacity 8 | 8 8 8 8 8 Final Carried 8 | 6 8 8 5 6 Class Distribution -------------------- 66% | Mutant 22% | Commander-Mutant 10% | Scavenger-Mutant Dominant Class ---------------- Mutant | -10/Materials Mutant | -10/Mines Mutant | -10/Subcaves Commander-Mutant | -8/Recycling Resources | -11 -10 -10 -10 -8 ----------- Run | Yrd Mat Min Sub Rec Matter Collected 726 | 170 142 93 245 76 Remotely . | . . . . . Salvage Created 871 | . 244 . 267 360 Parts 42 | . 18 . 14 10 Haulers Intercepted 1 | . 1 . . . Recyclers Shooed . | . . . . . Parts Field Recycled . | . . . . . Retrieved Matter . | . . . . . Parts Self-Destructed 8 | . . . 8 . Prevented . | . . . . . Kills | -11 -10 -10 -10 -8 ------- Run | Yrd Mat Min Sub Rec Combat Hostiles Destroyed 19 | . 8 . 6 5 Guns 15 | . 8 . 6 1 Cannons 4 | . . . . 4 Classes Destroyed 8 | . 3 . 1 4 Hauler 1 | . 1 . . . Swarmer 6 | . 6 . . . Grunt 2 | . 2 . . . Protector 1 | . . . . 1 Sentry 2 | . . . . 2 Demolisher 1 | . . . . 1 Programmer 1 | . . . . 1 Subdweller 6 | . . . 6 . Best Kill Streak 6 | . 6 . 3 2 Combat Bots Only 6 | . 6 . 3 2 Max Kills in Single Turn 1 | . 1 . 1 1 Gunslinging . | . . . . . Exploded . | . . . . . Melee . | . . . . . Uniques/NPCs Destroyed . | . . . . . Combat | -11 -10 -10 -10 -8 -------- Run | Yrd Mat Min Sub Rec Hostile Shots Fired 81 | . 31 . 21 29 Missed 14 | . 4 . 5 5 Hits 67 | . 27 . 16 24 Melee 2 | . . . . 2 Projectile 65 | . 27 . 16 22 AOE 4 | . . . . 4 Critical Strikes 2 | . 1 . . 1 Damage Taken 1161 | . 323 . 356 482 Core 256 | . 74 . 90 92 Absorbed by Shields . | . . . . . Core Remaining (%) 100 | 100 . . . . Volleys Fired 73 | . 26 2 22 23 Largest 2 | . 2 2 2 2 Hottest 156 | . 40 40 156 120 Shots Fired 141 | . 52 4 38 47 Gun 95 | . 52 4 35 4 Cannon 43 | . . . . 43 Launcher 2 | . . . 2 . Special 1 | . . . 1 . Kinetic 72 | . 52 4 16 . Thermal 63 | . . . 20 43 Explosive 2 | . . . 2 . Electromagnetic 4 | . . . . 4 Robot Hit Streak 11 | . 11 2 7 10 Robot Miss Streak 6 | . 6 2 1 2 Penetration Max . | . . . . . Secondary Targets 2 | . 2 . . . Max Gunslinging Chain 1 | . 1 . . . Shots Hit Robots 89 | . 30 2 27 30 Core Hits 33 | . 14 1 11 7 Critical Kills . | . . . . . Critical Parts Destroyed 1 | . 1 . . . Critical Strikes 1 | . 1 . . . Destroy 1 | . 1 . . . Melee Attacks . | . . . . . Impact . | . . . . . Slashing . | . . . . . Piercing . | . . . . . Sneak Attacks . | . . . . . Combat Hostiles . | . . . . . Follow-up Attacks . | . . . . . Damage Inflicted 1435 | . 331 38 367 699 Guns 739 | . 331 38 355 15 Cannons 684 | . . . . 684 Explosions . | . . . . . Melee . | . . . . . Ramming . | . . . . . Kinetic 563 | . 331 38 194 . Thermal 857 | . . . 173 684 Explosive . | . . . . . Electromagnetic 15 | . . . . 15 Impact . | . . . . . Slashing . | . . . . . Piercing . | . . . . . Highest Corruption 2 | . 1 1 1 2 Average Corruption 1 | . 1 1 1 1 Corruption Purged . | . . . . . Corruption Blocked . | . . . . . Effects 22 | . 1 4 4 13 Message Errors 6 | . . 1 . 5 Matter Fused 5 | . . 1 1 3 Heat Flow Errors 3 | . . . . 3 Data Loss (minor) 4 | . 1 2 1 . Misfires 1 | . . . . 1 Alerts 2 | . . . 1 1 Weapon Failures 1 | . . . 1 . Overload Shots . | . . . . . Overflow Damage 38 | . . . . 38 Projectiles 38 | . . . . 38 Explosions . | . . . . . Melee . | . . . . . Knockbacks . | . . . . . Impact . | . . . . . Kinetic . | . . . . . Secondary . | . . . . . Self-Inflicted Damage 6 | . . . 6 . Shots 1 | . . . 1 . Rammed . | . . . . . Targets Rammed . | . . . . . Kicked . | . . . . . Crushed . | . . . . . Highest Temperature 438 | . 27 . 6 438 Average Temperature 120 | . 15 . 4 127 Received Heat Transfer 258 | . 72 . 96 90 Effects 5 | . . . . 5 Shutdowns 1 | . . . . 1 Interference 3 | . . . . 3 Short Circuit 1 | . . . . 1 Siege Activations . | . . . . . Martial Activations . | . . . . . Shielding Activations . | . . . . . Robots Disrupted . | . . . . . Combat Hostiles . | . . . . . Robots Corrupted . | . . . . . Combat Hostiles . | . . . . . Parts Fried . | . . . . . Impact Corruptions . | . . . . . Robots Melted . | . . . . . Combat Hostiles . | . . . . . Parts Melted 4 | . . . . 4 Heat Transferred 1540 | . . . 487 1053 Parts Sabotaged . | . . . . . Parts Stolen . | . . . . . Parts Stripped . | . . . . . Power Chain Reactions . | . . . . . Alert | -11 -10 -10 -10 -8 ------- Run | Yrd Mat Min Sub Rec Maximum Alert Level . | . . . . . Low Security (%) 100 | 100 100 100 . 100 Level 1 . | . . . . . Level 2 . | . . . . . Level 3 . | . . . . . Level 4 . | . . . . . Level 5 . | . . . . . High Security . | . . . . . Max Security . | . . . . . Peak Influence 180 | . 180 66 . 36 Initial 66 | . . 66 . . Average 11 | . 52 12 . 4 Influence Increases 382 | . 232 . . 150 Destroy 0b10 Robot/C 260 | . 160 . . 100 Destroy 0b10 Robot/NC 20 | . 5 . . 15 Destroy Leader 32 | . 32 . . . Allied During Kill 4 | . . . . 4 Successful Hack 16 | . 4 . . 12 Destroy Structure 5 | . 1 . . 4 Lose Combat Pursuer 45 | . 30 . . 15 Influence Decreases 382 | . 62 170 . 150 Entered New Map 104 | . . 104 . . Time Decay 268 | . 62 66 . 140 Lost Ally 10 | . . . . 10 Squads Dispatched 1 | . 1 . . . Investigation . | . . . . . Extermination . | . . . . . Reinforcement 1 | . 1 . . . Assault . | . . . . . Garrison . | . . . . . Intercept . | . . . . . Searches Triggered . | . . . . . Construction Impeded . | . . . . . Haulers Reinforced . | . . . . . Active Scanning Responses . | . . . . . Cargo Convoy Interrupts . | . . . . . Stealth | -11 -10 -10 -10 -8 --------- Run | Yrd Mat Min Sub Rec Distress Signals 1 | . 1 . . . Communications Jammed . | . . . . . Distress Signals . | . . . . . Times Spotted 30 | . 11 2 6 11 Peak Tracking Total 6 | . 6 2 2 3 Tactical Retreats 2 | . 1 . . 1 Traps | -11 -10 -10 -10 -8 ------- Run | Yrd Mat Min Sub Rec Traps Triggered 1 | . 1 . . . Indirectly . | . . . . . Trap Hack Attempts . | . . . . . Triggered . | . . . . . Disarmed . | . . . . . Reprogrammed . | . . . . . Reused . | . . . . . Traps Extracted . | . . . . . Installed . | . . . . . Triggered . | . . . . . Machines | -11 -10 -10 -10 -8 ---------- Run | Yrd Mat Min Sub Rec Machines Disabled . | . . . . . Max in Single Turn . | . . . . . Machines Repaired . | . . . . . Machines Dismantled . | . . . . . Machines Sabotaged . | . . . . . Overloaded Fab Kills . | . . . . . Hacking | -11 -10 -10 -10 -8 --------- Run | Yrd Mat Min Sub Rec Machines Accessed 8 | . 1 . . 7 Terminals 5 | . 1 . . 4 Fabricators . | . . . . . Repair Stations . | . . . . . Recycling Units 3 | . . . . 3 Scanalyzers . | . . . . . Garrison Access . | . . . . . Total Hacks 18 | . 3 . . 15 Successful 10 | . 3 . . 7 Failed 8 | . . . . 8 Catastrophic 1 | . . . . 1 Database Lockouts . | . . . . . Manual . | . . . . . Terminals 12 | . 3 . . 9 Fabricators . | . . . . . Repair Stations . | . . . . . Recycling Units 6 | . . . . 6 Scanalyzers . | . . . . . Garrison Access . | . . . . . Terminal Hacks 6 | . 3 . . 3 Part Schematic 1 | . . . . 1 Robot Schematic 1 | . . . . 1 Alert Level 1 | . 1 . . . Locate Traps 1 | . 1 . . . Dispatch Records 1 | . 1 . . . Investigation Status 1 | . . . . 1 Fabricator Hacks . | . . . . . Repair Station Hacks . | . . . . . Recycling Unit Hacks 4 | . . . . 4 Report Inventory 3 | . . . . 3 Retrieve Components 1 | . . . . 1 Scanalyzer . | . . . . . Garrison Access Hacks . | . . . . . Unauthorized Hacks . | . . . . . Terminals . | . . . . . Fabricators . | . . . . . Repair Stations . | . . . . . Recycling Units . | . . . . . Scanalyzers . | . . . . . Garrison Access . | . . . . . Data Cores Recovered . | . . . . . Used . | . . . . . Hacking Detections 5 | . 1 . . 4 Full Trace Events . | . . . . . Feedback Events . | . . . . . Feedback Blocked . | . . . . . Robot Schematics Acquired 1 | . . . . 1 Robots Built . | . . . . . Authchips . | . . . . . Time . | . . . . . Total Robot Build Rating . | . . . . . Part Schematics Acquired 1 | . . . . 1 Parts Built . | . . . . . Authchips . | . . . . . Time . | . . . . . Total Part Build Rating . | . . . . . Parts Repaired . | . . . . . Time . | . . . . . Parts Recycled . | . . . . . Recycled Matter . | . . . . . Retrieved Matter . | . . . . . Retrieved Components 2 | . . . . 2 Parts Scanalyzed . | . . . . . Part Schematics Acquired . | . . . . . Parts Damaged . | . . . . . Bothacking | -11 -10 -10 -10 -8 ------------ Run | Yrd Mat Min Sub Rec Used RIF Installer . | . . . . . Robots Hacked . | . . . . . Non-combat . | . . . . . Combat . | . . . . . Robot Hacks Applied . | . . . . . Relay Couplers Released . | . . . . . Fabnet Peak Effective % . | . . . . . Robots Rewired 4 | . . . . 4 Allies Hacked . | . . . . . Hacks Repelled . | . . . . . Allies | -11 -10 -10 -10 -8 -------- Run | Yrd Mat Min Sub Rec Total Allies 4 | . . . . 4 Largest Group 4 | . . . . 4 Highest-Rated Group 43 | . . . . 43 Highest-Rated Ally 15 | . . . . 15 Total Orders . | . . . . . Ally Attacks 4 | . . . . 4 Total Damage 101 | . . . . 101 Kills 1 | . . . . 1 Allies Corrupted . | . . . . . Allies Melted . | . . . . . Intel | -11 -10 -10 -10 -8 ------- Run | Yrd Mat Min Sub Rec Active Infowar (turns) 758 | . 103 389 266 . Structural 758 | . 103 389 266 . Robot Analysis Total . | . . . . . Derelict Logs Recovered 2 | . . 2 . . Drone Launches . | . . . . . Drone Recoveries . | . . . . . Exploration | -11 -10 -10 -10 -8 ------------- Run | Yrd Mat Min Sub Rec Turns Passed 2621 | 83 194 389 892 1063 Spaces Moved 1346 | 59 94 295 502 396 Core 43 | 3 . . . 40 Treads . | . . . . . Legs 1237 | 56 94 295 436 356 Wheels 66 | . . . 66 . Hover . | . . . . . Flight . | . . . . . Fastest Speed 50 | 50 120 120 120 120 Average Speed 167 | 116 120 120 161 229 Slowest Speed 450 | 120 120 120 260 450 Overloaded Moves . | . . . . . Propulsion Burnouts . | . . . . . Robots Hopped . | . . . . . Potential Cave-ins 1 | . . . 1 . Cave-ins Triggered . | . . . . . Exploration Rate (%) 44 | 6 34 83 36 64 Regions Visited 4 Branch Regions 3 Pre-discovered Areas 1 | . . 1 . . Known Exits Taken . | . . . . . Unknown Exits Taken 4 | 1 1 1 1 . Scrap Searched 4 | . . 1 3 . Spaces Dug . | . . . . . Terrain Destroyed 7 | . . . 3 4 Melee . | . . . . . Projectile 4 | . . . . 4 AOE 3 | . . . 3 . Terrain Rammed . | . . . . . Walls Destroyed . | . . . . . Machines Disabled . | . . . . . Actions | -11 -10 -10 -10 -8 --------- Run | Yrd Mat Min Sub Rec Total 1581 | 70 130 327 546 508 Wait 34 | . . 26 2 6 Move 1342 | 58 93 294 501 396 Hop . | . . . . . Pick Up 30 | 6 6 1 6 11 Fast Attach 8 | 6 1 . . 1 Attach 5 | . . . 4 1 Detach . | . . . . . Swap 11 | . . 2 5 4 Drop 21 | . 4 2 6 9 Fire 73 | . 26 2 22 23 Melee . | . . . . . Ram . | . . . . . Kick . | . . . . . Crush . | . . . . . Escape Stasis . | . . . . . Rewire 57 | . . . . 57 Trap . | . . . . . Miscellaneous . | . . . . . Route ------- -11/Scrapyard -10/Materials -10/Mines (discovered 3 exits: [*Mat x2] / [*Sub]) -10/Subcaves (discovered 2 exits: [*Mat] / *Rec) -8/Recycling (discovered 1 exit: [*Fac]) History --------- Turn | Location | Event 2 | -11/Scrapyard | Met Revision 17 6 | -11/Scrapyard | Discovered new exit (range 16) 84 | -11/Scrapyard | Entered Materials 254 | -10/Materials | Discovered new exit (range 6) 278 | -10/Materials | Entered Mines 280 | -10/Mines | Joined a pair of Derelicts in attacking an 0b10 outpost 321 | -10/Mines | Build established: Mutant 385 | -10/Mines | Discovered new exit (range 9) 582 | -10/Mines | Learned location of Mines (-8) 613 | -10/Mines | Discovered new exit (range 15) 625 | -10/Mines | Learned Materials security intel 634 | -10/Mines | Discovered new exit (range 8) 667 | -10/Mines | Entered Subcaves 685 | -10/Subcaves | A swath of the cavern ceiling suddenly collapsed 1333 | -10/Subcaves | Core integrity fell below 50% 1368 | -10/Subcaves | Discovered new exit (range 5) 1399 | -10/Subcaves | Discovered new exit (range 9) 1559 | -10/Subcaves | Entered Recycling 2238 | -8/Recycling | Build established: Commander-Mutant 2457 | -8/Recycling | Core integrity fell below 20% 2512 | -8/Recycling | Discovered new exit (range 16) 2622 | -8/Recycling | Destroyed by D-53 Grenadier with Mini Grenade Launcher Last Messages --------------- 7<4Z,E=>Recycling(Report) Matter reserves: 0 Inventory: Com. Matter Pod (26%) EXIT=FOUND ED=/WTTYDN&| BY DY4 HE5Z R-06 Scavenger inserts Cmb. Airjet into recycling unit. The unstable cave ceiling collapses. Defender 3a suffers critical hit (Burn). Defender 3a destroyed. Map ----- +----------------------------------------------------+ | ?????????????????????????????????????? | | ?????????????????????????????????????? | | ?????????????????????????????????????? | | ????????????????????##???????????????? | | ????????????????????? ??????????????? | | ?????????????????????# ?????????????? | | ?????????????????????# ?????????????? | | ?????????????????????# ????????????? | | ?????????????????????# ?##????????? | | ??????????????????#### ## ######### | | ??????????????????+ % | | ??????????????????# | | ??????????????? # % | | ????????????????? # | | ??????????????????+ ###### | | ??????????????????# ######### #????? | | ??????????????????# #???????# #????? | | ??????????????????# #########+####?? | | ??????????????????# # #?? | | ??????????????????# # #?? | | ??????????#########r ! #?? | | ??????##### #!! # # / #?? | | ??????# ! r #?? | | ??????# [% r # ! ! !#?? | | ??????# % ] #?? | | ??????# @ d #?? | | ??????# r [ #?? | | ??????## # % #?? | | ??????## ##### # ] = #?? | | ??????# a #??# # #?? | | ??????# #??# Y ##############?? | | ??????# % #??# #??????????????? | | ??????# #??# #??????????????? | | ??????# #??# #?????????????? | | ??##+## #??# ##?????????????? | | ??# #??# #??????????????? | | ??# #??#+###/##??????????????? | | ??# # #??????? ???????????????? | | ??# # % #??????? ???????????????? | | ??# #??????? ???????????????? | | ??# ##?????? ???????????????? | | ??# % !#???????????????????????? | | ??# % !!#???????????????????????? | | ??# " !!#???????????????????????? | | ??# # ###???????????????????????? | | ??# # #????????????????????????? | | ??# # ##????????????????????????? | | ??# # #?????????????????????????? | | ??## ### #?????????????????????????? | | ???###"" #?????????????????????????? | +----------------------------------------------------+ Best States ------------- Heat Dissipation 25 Energy Generation 15 Energy Capacity 265 Matter Stores 300 Matter Capacity 300 Sight Range 16 Terrain Scan Density 10 Armor Coverage 100 Evasion (%) 55 Item Schematics ----------------- Coil Gun | -8/Recycling | Hacked Robot Schematics ------------------ K-01 Serf | -8/Recycling | Hacked Fabricated ------------ Nothing Repaired ---------- Nothing Alien Tech Used ----------------- None Achievements -------------- None Challenges ------------ None Game ------ Seed ArmageddonMomentumChainsaw Manual? 0 Play Time 00:32:40 Cumulative 38.7 hours Start 2025.09.23 @ 17:14:45 End 2025.09.23 @ 17:47:55 Sessions 1 Manual Loads 0 Difficulty Rogue Special Mode None Game No. 62 Rogue 62 Adventurer 0 Explorer 0 Win Type - Total 0 Types 0/0/0/0/0/0/0/0/0/0 Lore% 20 Gallery% 32 Achievement% 27 Wizard Run 0 Options --------- Layout 1 ASCII 0 Keyboard 0 Movement Numpad Keybinds 0 Fullscreen 1 Font 24/Smallcaps Map View 50x35 Zoom Use 0% Tactical HUD 0 Map Filters NONE Filters NONE Steam 1 RUN: d3e1d91a-8778-48fb-87a8-9a9ee24d6bae